[Event "Queens Festival Final Team 2022"]
[Site "Tornelo"]
[Date "2022.06.26"]
[Round "3.6"]
[White "Moshoboro Arona"]
[Black "Mwendwa, Triza"]
[Result "1-0"]
[ECO "D12"]
[WhiteElo "1555"]
[BlackElo "1470"]
[Annotator "NA RC"]
[PlyCount "75"]
[EventDate "2022.06.24"]
[EventType "team-tourn"]
[EventCountry "NET"]
[SourceTitle "playchess.com"]
[Source "ChessBase"]
[SourceQuality "1"]
[WhiteTeam "Botswana"]
[BlackTeam "Kenya"]
[WhiteTeamCountry "BOT"]
[BlackTeamCountry "KEN"]
[TimeControl "180+2"]

1. d4 {[%emt 0:00:02]} d5 {[%emt 0:00:05]} 2. Nf3 {[%emt 0:00:02]} Bf5 {[%emt 0:00:02]} 3. e3 {[%emt 0:00:03]} e6 {[%emt 0:00:02]} 4. c4 {[%emt 0:00:07]} c6 {[%emt 0:00:09]} 5. Nc3 {[%emt 0:00:03]} Nf6 {[%emt 0:00:05]} 6. Bd2 {[%emt 0:00:04]} Nbd7 {[%emt 0:00:06]} 7. Be2 {[%emt 0:00:02]} dxc4 {[%emt 0:00:03]} 8. Bxc4 {[%emt 0:00:03]} Bd6 {[%emt 0:00:07]} 9. O-O {[%emt 0:00:02]} Ne4 {[%emt 0:00:23]} 10. Qb3 {[%emt 0:00:08]} Qb6 {[%emt 0:00:27]} 11. Rac1 {[%emt 0:00:19]} Ndf6 {[%emt 0:00:08]} 12. Rfd1 {[%emt 0:00:06]} O-O {[%emt 0:00:09]} 13. Na4 {[%emt 0:00:07]} Qxb3 {[%emt 0:00:16]} 14. Bxb3 {[%emt 0:00:03]} Ng4 {[%emt 0:00:04]} 15. Be1 {[%emt 0:00:07]} h6 {[%emt 0:00:32]} 16. Nc5 {[%emt 0:00:03]} Bxc5 {[%emt 0:00:21]} 17. dxc5 {[%emt 0:00:04]} Rfd8 {[%emt 0:00:10]} 18. h3 {[%emt 0:00:08]} Ngf6 {[%emt 0:00:06]} 19. Ne5 {[%emt 0:00:07]} Rxd1 {[%emt 0:00:04]} 20. Bxd1 {[%emt 0:00:03]} Nd5 {[%emt 0:00:04]} 21. Bf3 {[%emt 0:00:08]} Nb4 {[%emt 0:00:04]} 22. Bxb4 {[%emt 0:00:03]} Rd8 {[%emt 0:00:06]} 23. Rd1 {[%emt 0:00:13]} Rxd1+ {[%emt 0:00:03]} 24. Bxd1 {[%emt 0:00:02]} a5 {[%emt 0:00:03]} 25. Ba3 {[%emt 0:00:18]} f6 {[%emt 0:00:04]} 26. Nd7 {[%emt 0:00:05]} e5 {[%emt 0:00:02]} 27. Nb6 {[%emt 0:00:03]} Nd2 {[%emt 0:00:05]} 28. Kh2 {[%emt 0:00:04]} Be4 {[%emt 0:00:03]} 29. f3 {[%emt 0:00:05]} Bd5 {[%emt 0:00:02]} 30. Nxd5 {[%emt 0:00:03]} cxd5 {[%emt 0:00:02]} 31. Kg3 {[%emt 0:00:04]} Nc4 {[%emt 0:00:01]} 32. Kf2 {[%emt 0:00:04]} Nxa3 {[%emt 0:00:03]} 33. bxa3 {[%emt 0:00:02]} Kf7 {[%emt 0:00:02]} 34. Ke2 {[%emt 0:00:02]} Ke6 {[%emt 0:00:02]} 35. Ba4 {[%emt 0:00:02]} Ke7 {[%emt 0:00:03]} 36. Kd3 {[%emt 0:00:02]} f5 {[%emt 0:00:03]} 37. g4 {[%emt 0:00:04]} Ke6 {[%emt 0:00:02]} 38. h4 {[%emt 0:00:08]} 1-0

[Event "Queens Festival Final Team 2022"]
[Site "Tornelo"]
[Date "2022.06.26"]
[Round "4.1"]
[White "Subramanian, Anusha"]
[Black "Marape, Naledi"]
[Result "0-1"]
[ECO "D94"]
[WhiteElo "1671"]
[BlackElo "1707"]
[Annotator "NA RC"]
[PlyCount "170"]
[EventDate "2022.06.24"]
[EventType "team-tourn"]
[EventCountry "NET"]
[SourceTitle "playchess.com"]
[Source "ChessBase"]
[SourceQuality "1"]
[WhiteTeam "England"]
[BlackTeam "Botswana"]
[WhiteTeamCountry "ENG"]
[BlackTeamCountry "BOT"]
[TimeControl "180+2"]

1. d4 {[%emt 0:00:02]} Nf6 {[%emt 0:00:07]} 2. c4 {[%emt 0:00:02]} g6 {[%emt 0:00:02]} 3. Nf3 {[%emt 0:00:02]} Bg7 {[%emt 0:00:03]} 4. Nc3 {[%emt 0:00:02]} O-O {[%emt 0:00:04]} 5. e3 {[%emt 0:00:09]} d5 {[%emt 0:00:05]} 6. cxd5 {[%emt 0:00:05]} Nxd5 {[%emt 0:00:06]} 7. Bc4 {[%emt 0:00:03]} Nb6 {[%emt 0:00:11]} 8. Bd3 {[%emt 0:00:02]} Bg4 {[%emt 0:00:07]} 9. h3 {[%emt 0:00:04]} Bxf3 {[%emt 0:00:05]} 10. Qxf3 {[%emt 0:00:00]} c6 {[%emt 0:00:05]} 11. O-O {[%emt 0:00:02]} N8d7 {[%emt 0:00:02]} 12. b3 {[%emt 0:00:05]} Nf6 {[%emt 0:00:02]} 13. Bb2 {[%emt 0:00:06]} Nfd5 {[%emt 0:00:11]} 14. Qe2 {[%emt 0:00:13]} e5 {[%emt 0:00:11]} 15. dxe5 {[%emt 0:00:07]} Bxe5 {[%emt 0:00:06]} 16. Nxd5 {[%emt 0:00:14]} Qxd5 {[%emt 0:00:07]} 17. Bxe5 {[%emt 0:00:20]} Qxe5 {[%emt 0:00:04]} 18. Bc4 {[%emt 0:00:06]} Rad8 {[%emt 0:00:13]} 19. Rfd1 {[%emt 0:00:03]} Nd5 {[%emt 0:00:05]} 20. Bxd5 {[%emt 0:00:05]} Rxd5 {[%emt 0:00:06]} 21. Rxd5 {[%emt 0:00:02]} Qxa1+ {[%emt 0:00:11]} 22. Rd1 {[%emt 0:00:02]} Qe5 {[%emt 0:00:04]} 23. Qd3 {[%emt 0:00:04]} Qe7 {[%emt 0:00:07]} 24. Qd4 {[%emt 0:00:11]} c5 {[%emt 0:00:04]} 25. Qa4 {[%emt 0:00:02]} a6 {[%emt 0:00:09]} 26. Rd7 {[%emt 0:00:03]} Qe8 {[%emt 0:00:05]} 27. Rxb7 {[%emt 0:00:17]} Qxa4 {[%emt 0:00:05]} 28. bxa4 {[%emt 0:00:00]} Rc8 {[%emt 0:00:04]} 29. Rb6 {[%emt 0:00:02]} c4 {[%emt 0:00:05]} 30. Rb2 {[%emt 0:00:04]} c3 {[%emt 0:00:02]} 31. Rc2 {[%emt 0:00:01]} Rc4 {[%emt 0:00:02]} 32. Kf1 {[%emt 0:00:02]} Rxa4 {[%emt 0:00:03]} 33. Rxc3 {[%emt 0:00:01]} Rxa2 {[%emt 0:00:02]} 34. g4 {[%emt 0:00:01]} Kg7 {[%emt 0:00:03]} 35. Kg2 {[%emt 0:00:03]} Kf6 {[%emt 0:00:02]} 36. Rc7 {[%emt 0:00:06]} Ke6 {[%emt 0:00:12]} 37. Kg3 {[%emt 0:00:03]} h6 {[%emt 0:00:03]} 38. h4 {[%emt 0:00:06]} a5 {[%emt 0:00:03]} 39. Ra7 {[%emt 0:00:03]} a4 {[%emt 0:00:03]} 40. Kf4 {[%emt 0:00:02]} Rxf2+ {[%emt 0:00:07]} 41. Ke4 {[%emt 0:00:09]} Rg2 {[%emt 0:00:02]} 42. Kf3 {[%emt 0:00:03]} Ra2 {[%emt 0:00:04]} 43. Ke4 {[%emt 0:00:02]} a3 {[%emt 0:00:03]} 44. Ra6+ {[%emt 0:00:07]} Ke7 {[%emt 0:00:04]} 45. Ke5 {[%emt 0:00:02]} Rg2 {[%emt 0:00:08]} 46. Rxa3 {[%emt 0:00:19]} Rxg4 {[%emt 0:00:03]} 47. Ra7+ {[%emt 0:00:03]} Ke8 {[%emt 0:00:06]} 48. Kf6 {[%emt 0:00:03]} Rxh4 {[%emt 0:00:05]} 49. Ra8+ {[%emt 0:00:02]} Kd7 {[%emt 0:00:04]} 50. Kxf7 {[%emt 0:00:01]} g5 {[%emt 0:00:03]} 51. Ra6 {[%emt 0:00:05]} h5 {[%emt 0:00:06]} 52. Rg6 {[%emt 0:00:07]} Rg4 {[%emt 0:00:05]} 53. Kf6 {[%emt 0:00:03]} h4 {[%emt 0:00:05]} 54. Kf5 {[%emt 0:00:02]} Rg3 {[%emt 0:00:03]} 55. e4 {[%emt 0:00:05]} h3 {[%emt 0:00:02]} 56. Rh6 {[%emt 0:00:16]} g4 {[%emt 0:00:05]} 57. e5 {[%emt 0:00:08]} Rg2 {[%emt 0:00:02]} 58. e6+ {[%emt 0:00:02]} Ke7 {[%emt 0:00:02]} 59. Rh7+ {[%emt 0:00:02]} Ke8 {[%emt 0:00:03]} 60. Kf6 {[%emt 0:00:02]} Rf2+ {[%emt 0:00:04]} 61. Kg5 {[%emt 0:00:03]} g3 {[%emt 0:00:02]} 62. Rxh3 {[%emt 0:00:02]} g2 {[%emt 0:00:02]} 63. Rg3 {[%emt 0:00:01]} Rf8 {[%emt 0:00:05]} 64. Rxg2 {[%emt 0:00:04]} Rg8+ {[%emt 0:00:02]} 65. Kf6 {[%emt 0:00:02]} Rxg2 {[%emt 0:00:01]} 66. Ke5 {[%emt 0:00:01]} Re2+ {[%emt 0:00:01]} 67. Kd6 {[%emt 0:00:02]} Kf8 {[%emt 0:00:02]} 68. Kd7 {[%emt 0:00:01]} Re3 {[%emt 0:00:03]} 69. Kd8 {[%emt 0:00:02]} Rxe6 {[%emt 0:00:03]} 70. Kd7 {[%emt 0:00:00]} Kf7 {[%emt 0:00:02]} 71. Kd8 {[%emt 0:00:02]} Re1 {[%emt 0:00:00]} 72. Kd7 {[%emt 0:00:01]} Kf6 {[%emt 0:00:03]} 73. Kd6 {[%emt 0:00:03]} Kf5 {[%emt 0:00:02]} 74. Kd7 {[%emt 0:00:03]} Rd1+ {[%emt 0:00:01]} 75. Ke7 {[%emt 0:00:01]} Rd5 {[%emt 0:00:02]} 76. Ke8 {[%emt 0:00:03]} Ke6 {[%emt 0:00:02]} 77. Kf8 {[%emt 0:00:01]} Rd7 {[%emt 0:00:02]} 78. Ke8 {[%emt 0:00:02]} Ra7 {[%emt 0:00:02]} 79. Kd8 {[%emt 0:00:01]} Kf6 {[%emt 0:00:01]} 80. Ke8 {[%emt 0:00:02]} Ke6 {[%emt 0:00:01]} 81. Kd8 {[%emt 0:00:01]} Kd6 {[%emt 0:00:04]} 82. Kc8 {[%emt 0:00:02]} Rh7 {[%emt 0:00:01]} 83. Kb8 {[%emt 0:00:01]} Kc6 {[%emt 0:00:02]} 84. Ka8 {[%emt 0:00:03]} Kb6 {[%emt 0:00:02]} 85. Kb8 {[%emt 0:00:01]} Rh8# {[%emt 0:00:01]} 0-1

[Event "Queens Festival Final Team 2022"]
[Site "Tornelo"]
[Date "2022.06.26"]
[Round "4.1"]
[White "Posadas, Rayelynn"]
[Black "Francis, Onkemetse"]
[Result "1-0"]
[ECO "D78"]
[WhiteElo "1648"]
[BlackElo "1777"]
[Annotator "NA RC"]
[PlyCount "149"]
[EventDate "2022.06.24"]
[EventType "team-tourn"]
[EventCountry "NET"]
[SourceTitle "playchess.com"]
[Source "ChessBase"]
[SourceQuality "1"]
[WhiteTeam "England"]
[BlackTeam "Botswana"]
[WhiteTeamCountry "ENG"]
[BlackTeamCountry "BOT"]
[TimeControl "180+2"]

1. Nf3 {[%emt 0:00:02]} Nf6 {[%emt 0:00:06]} 2. d4 {[%emt 0:00:02]} d5 {[%emt 0:00:03]} 3. g3 {[%emt 0:00:01]} g6 {[%emt 0:00:05]} 4. Bg2 {[%emt 0:00:01]} Bg7 {[%emt 0:00:02]} 5. O-O {[%emt 0:00:01]} O-O {[%emt 0:00:01]} 6. c4 {[%emt 0:00:04]} c6 {[%emt 0:00:04]} 7. Nc3 {[%emt 0:00:02]} dxc4 {[%emt 0:00:02]} 8. e4 {[%emt 0:00:10]} Nbd7 {[%emt 0:00:13]} 9. Qe2 {[%emt 0:00:14]} Nb6 {[%emt 0:00:10]} 10. Rd1 {[%emt 0:00:02]} e6 {[%emt 0:00:03]} 11. Be3 {[%emt 0:00:09]} Qc7 {[%emt 0:00:05]} 12. Rac1 {[%emt 0:00:17]} Qe7 {[%emt 0:00:07]} 13. Ne5 {[%emt 0:00:04]} Rd8 {[%emt 0:00:10]} 14. Nxc4 {[%emt 0:00:05]} Nxc4 {[%emt 0:00:02]} 15. Qxc4 {[%emt 0:00:01]} Ng4 {[%emt 0:00:04]} 16. Qe2 {[%emt 0:00:16]} Nxe3 {[%emt 0:00:03]} 17. Qxe3 {[%emt 0:00:02]} Bd7 {[%emt 0:00:03]} 18. d5 {[%emt 0:00:06]} exd5 {[%emt 0:00:02]} 19. exd5 {[%emt 0:00:07]} Qxe3 {[%emt 0:00:03]} 20. fxe3 {[%emt 0:00:02]} cxd5 {[%emt 0:00:04]} 21. Nxd5 {[%emt 0:00:06]} Bc6 {[%emt 0:00:14]} 22. Ne7+ {[%emt 0:00:04]} Kf8 {[%emt 0:00:03]} 23. Nxc6 {[%emt 0:00:02]} Rxd1+ {[%emt 0:00:08]} 24. Rxd1 {[%emt 0:00:02]} bxc6 {[%emt 0:00:01]} 25. b3 {[%emt 0:00:02]} Rc8 {[%emt 0:00:09]} 26. Rd7 {[%emt 0:00:09]} a5 {[%emt 0:00:04]} 27. Ra7 {[%emt 0:00:02]} Bc3 {[%emt 0:00:03]} 28. Bh3 {[%emt 0:00:05]} Re8 {[%emt 0:00:09]} 29. Kf2 {[%emt 0:00:11]} Re7 {[%emt 0:00:07]} 30. Ra8+ {[%emt 0:00:13]} Kg7 {[%emt 0:00:02]} 31. Rc8 {[%emt 0:00:03]} Bd2 {[%emt 0:00:04]} 32. Rxc6 {[%emt 0:00:11]} Bxe3+ {[%emt 0:00:05]} 33. Kf3 {[%emt 0:00:03]} Bd2 {[%emt 0:00:02]} 34. Rd6 {[%emt 0:00:10]} Bb4 {[%emt 0:00:04]} 35. Rd5 {[%emt 0:00:07]} h6 {[%emt 0:00:07]} 36. Bd7 {[%emt 0:00:02]} Re1 {[%emt 0:00:09]} 37. a4 {[%emt 0:00:09]} Rf1+ {[%emt 0:00:03]} 38. Kg2 {[%emt 0:00:02]} Rb1 {[%emt 0:00:03]} 39. Rd3 {[%emt 0:00:02]} Rb2+ {[%emt 0:00:03]} 40. Kh3 {[%emt 0:00:01]} Rf2 {[%emt 0:00:05]} 41. Bb5 {[%emt 0:00:03]} h5 {[%emt 0:00:07]} 42. Bc4 {[%emt 0:00:02]} g5 {[%emt 0:00:02]} 43. Rd5 {[%emt 0:00:04]} f6 {[%emt 0:00:10]} 44. Rd7+ {[%emt 0:00:04]} Kg6 {[%emt 0:00:03]} 45. Bf7+ {[%emt 0:00:01]} Kh6 {[%emt 0:00:03]} 46. g4 {[%emt 0:00:24]} hxg4+ {[%emt 0:00:04]} 47. Kxg4 {[%emt 0:00:03]} Rxh2 {[%emt 0:00:02]} 48. Bc4 {[%emt 0:00:06]} Rg2+ {[%emt 0:00:03]} 49. Kf3 {[%emt 0:00:02]} Rd2 {[%emt 0:00:04]} 50. Rf7 {[%emt 0:00:05]} Kg6 {[%emt 0:00:04]} 51. Rc7 {[%emt 0:00:10]} Rd6 {[%emt 0:00:06]} 52. Bf7+ {[%emt 0:00:02]} Kh6 {[%emt 0:00:02]} 53. Kg4 {[%emt 0:00:01]} Rd4+ {[%emt 0:00:04]} 54. Kf3 {[%emt 0:00:03]} Rf4+ {[%emt 0:00:02]} 55. Kg3 {[%emt 0:00:01]} Rd4 {[%emt 0:00:04]} 56. Kf3 {[%emt 0:00:02]} f5 {[%emt 0:00:03]} 57. Rc6+ {[%emt 0:00:03]} Kg7 {[%emt 0:00:02]} 58. Be6 {[%emt 0:00:01]} Rd6 {[%emt 0:00:10]} 59. Rc7+ {[%emt 0:00:03]} Kf6 {[%emt 0:00:03]} 60. Bc4 {[%emt 0:00:01]} g4+ {[%emt 0:00:07]} 61. Kf4 {[%emt 0:00:03]} Bd2+ {[%emt 0:00:02]} 62. Kg3 {[%emt 0:00:02]} Rd4 {[%emt 0:00:02]} 63. Rf7+ {[%emt 0:00:02]} Kg5 {[%emt 0:00:02]} 64. Rg7+ {[%emt 0:00:01]} Kh6 {[%emt 0:00:02]} 65. Rf7 {[%emt 0:00:03]} Kg6 {[%emt 0:00:04]} 66. Rf8 {[%emt 0:00:03]} Be1+ {[%emt 0:00:10]} 67. Kg2 {[%emt 0:00:02]} Kg5 {[%emt 0:00:04]} 68. Rg8+ {[%emt 0:00:02]} Kf4 {[%emt 0:00:02]} 69. Re8 {[%emt 0:00:01]} Bb4 {[%emt 0:00:03]} 70. Rf8 {[%emt 0:00:05]} Rd2+ {[%emt 0:00:02]} 71. Kf1 {[%emt 0:00:02]} Ke4 {[%emt 0:00:04]} 72. Be6 {[%emt 0:00:02]} f4 {[%emt 0:00:03]} 73. Bxg4 {[%emt 0:00:02]} Rb2 {[%emt 0:00:02]} 74. Be6 {[%emt 0:00:02]} Ke3 {[%emt 0:00:03]} 75. Bc4 {[%emt 0:00:02]} 1-0

[Event "Queens Festival Final Team 2022"]
[Site "Tornelo"]
[Date "2022.06.26"]
[Round "4.1"]
[White "Banda Natalie Katlo"]
[Black "Catabay, Mae Katelyn Rose"]
[Result "0-1"]
[ECO "D04"]
[WhiteElo "1629"]
[BlackElo "1321"]
[Annotator "NA RC"]
[PlyCount "78"]
[EventDate "2022.06.24"]
[EventType "team-tourn"]
[EventCountry "NET"]
[SourceTitle "playchess.com"]
[Source "ChessBase"]
[SourceQuality "1"]
[WhiteTeam "Botswana"]
[BlackTeam "England"]
[WhiteTeamCountry "BOT"]
[BlackTeamCountry "ENG"]
[TimeControl "180+2"]

1. d4 {[%emt 0:00:02]} Nf6 {[%emt 0:00:05]} 2. Nf3 {[%emt 0:00:04]} g6 {[%emt 0:00:02]} 3. e3 {[%emt 0:00:02]} Bg7 {[%emt 0:00:02]} 4. Bd3 {[%emt 0:00:02]} d5 {[%emt 0:00:02]} 5. c3 {[%emt 0:00:01]} c5 {[%emt 0:00:02]} 6. Nbd2 {[%emt 0:00:03]} Nc6 {[%emt 0:00:02]} 7. O-O {[%emt 0:00:05]} O-O {[%emt 0:00:01]} 8. Qe2 {[%emt 0:00:03]} Bd7 {[%emt 0:00:05]} 9. e4 {[%emt 0:00:04]} dxe4 {[%emt 0:00:09]} 10. Nxe4 {[%emt 0:00:10]} cxd4 {[%emt 0:00:05]} 11. Nxd4 {[%emt 0:00:13]} Nxd4 {[%emt 0:00:10]} 12. cxd4 {[%emt 0:00:02]} Bc6 {[%emt 0:00:02]} 13. Nxf6+ {[%emt 0:00:23]} Bxf6 {[%emt 0:00:04]} 14. Bh6 {[%emt 0:00:11]} Re8 {[%emt 0:00:03]} 15. Bb5 {[%emt 0:00:19]} Qxd4 {[%emt 0:00:08]} 16. Bxc6 {[%emt 0:00:08]} bxc6 {[%emt 0:00:03]} 17. Rac1 {[%emt 0:00:15]} Rac8 {[%emt 0:00:11]} 18. b3 {[%emt 0:00:11]} Qh4 {[%emt 0:00:07]} 19. Be3 {[%emt 0:00:06]} a5 {[%emt 0:00:45]} 20. Qa6 {[%emt 0:00:21]} Qb4 {[%emt 0:00:22]} 21. Rxc6 {[%emt 0:00:14]} Ra8 {[%emt 0:00:04]} 22. Qc4 {[%emt 0:00:07]} Qxc4 {[%emt 0:00:03]} 23. Rxc4 {[%emt 0:00:03]} Rec8 {[%emt 0:00:02]} 24. Rfc1 {[%emt 0:00:04]} Rd8 {[%emt 0:00:05]} 25. g3 {[%emt 0:00:07]} Kg7 {[%emt 0:00:07]} 26. Ra4 {[%emt 0:00:06]} e6 {[%emt 0:00:13]} 27. Bb6 {[%emt 0:00:07]} Rd5 {[%emt 0:00:05]} 28. Rc5 {[%emt 0:00:04]} Rd1+ {[%emt 0:00:05]} 29. Kg2 {[%emt 0:00:03]} Bd4 {[%emt 0:00:02]} 30. Rcxa5 {[%emt 0:00:08]} Rxa5 {[%emt 0:00:12]} 31. Bxa5 {[%emt 0:00:02]} e5 {[%emt 0:00:12]} 32. b4 {[%emt 0:00:02]} Rb1 {[%emt 0:00:03]} 33. a3 {[%emt 0:00:04]} Rb2 {[%emt 0:00:02]} 34. Bc7 {[%emt 0:00:03]} Rxf2+ {[%emt 0:00:02]} 35. Kh3 {[%emt 0:00:04]} h5 {[%emt 0:00:04]} 36. Ra5 {[%emt 0:00:02]} f6 {[%emt 0:00:02]} 37. Ra6 {[%emt 0:00:02]} g5 {[%emt 0:00:02]} 38. Bd8 {[%emt 0:00:02]} g4+ {[%emt 0:00:03]} 39. Kh4 {[%emt 0:00:04]} Rxh2# {[%emt 0:00:01]} 0-1

[Event "Queens Festival Final Team 2022"]
[Site "Tornelo"]
[Date "2022.06.26"]
[Round "4.1"]
[White "Moshoboro Arona"]
[Black "Grigoryan, Meri"]
[Result "0-1"]
[ECO "D05"]
[WhiteElo "1555"]
[BlackElo "1993"]
[Annotator "NA"]
[PlyCount "60"]
[EventDate "2022.06.24"]
[EventType "team-tourn"]
[EventCountry "NET"]
[SourceTitle "playchess.com"]
[Source "ChessBase"]
[SourceQuality "1"]
[WhiteTeam "Botswana"]
[BlackTeam "England"]
[WhiteTeamCountry "BOT"]
[BlackTeamCountry "ENG"]
[TimeControl "180+2"]

1. d4 {[%emt 0:00:02]} d5 {[%emt 0:00:04]} 2. Nf3 {[%emt 0:00:03]} Nf6 {[%emt 0:00:01]} 3. e3 {[%emt 0:00:04]} e6 {[%emt 0:00:02]} 4. Bd3 {[%emt 0:00:02]} c5 {[%emt 0:00:01]} 5. b3 {[%emt 0:00:03]} Nc6 {[%emt 0:00:03]} 6. a3 {[%emt 0:00:05]} cxd4 {[%emt 0:00:02]} 7. exd4 {[%emt 0:00:04]} h6 {[%emt 0:00:04]} 8. O-O {[%emt 0:00:02]} Qb6 {[%emt 0:00:02]} 9. Bb2 {[%emt 0:00:04]} Bd6 {[%emt 0:00:02]} 10. Nbd2 {[%emt 0:00:04]} Ne7 {[%emt 0:00:02]} 11. Ne5 {[%emt 0:00:02]} Bxe5 {[%emt 0:00:04]} 12. dxe5 {[%emt 0:00:04]} Nd7 {[%emt 0:00:03]} 13. Kh1 {[%emt 0:00:05]} Nc5 {[%emt 0:00:08]} 14. Bd4 {[%emt 0:00:10]} Qc7 {[%emt 0:00:05]} 15. Be2 {[%emt 0:00:11]} b6 {[%emt 0:00:03]} 16. f4 {[%emt 0:00:03]} Bb7 {[%emt 0:00:02]} 17. Nf3 {[%emt 0:00:06]} Nf5 {[%emt 0:00:10]} 18. Bd3 {[%emt 0:00:06]} Ne4 {[%emt 0:00:05]} 19. Re1 {[%emt 0:00:10]} O-O-O {[%emt 0:00:04]} 20. Bb2 {[%emt 0:00:10]} Kb8 {[%emt 0:00:03]} 21. Rc1 {[%emt 0:00:04]} Nc3 {[%emt 0:00:03]} 22. Qd2 {[%emt 0:00:05]} d4 {[%emt 0:00:03]} 23. Bxf5 {[%emt 0:00:11]} exf5 {[%emt 0:00:15]} 24. Nxd4 {[%emt 0:00:05]} Ne4 {[%emt 0:00:10]} 25. Qe3 {[%emt 0:00:06]} Rxd4 {[%emt 0:00:09]} 26. Bxd4 {[%emt 0:00:07]} Qc6 {[%emt 0:00:02]} 27. Qf3 {[%emt 0:00:15]} g5 {[%emt 0:00:06]} 28. fxg5 {[%emt 0:00:04]} hxg5 {[%emt 0:00:01]} 29. Qxf5 {[%emt 0:00:12]} Ng3+ {[%emt 0:00:06]} 30. Kg1 {[%emt 0:00:14]} Qxg2# {[%emt 0:00:03]} 0-1

[Event "Queens Festival Final Team 2022"]
[Site "Tornelo"]
[Date "2022.06.26"]
[Round "4.2"]
[White "Shriyan santosh Priyasha"]
[Black "Shah, Riya"]
[Result "1-0"]
[ECO "A39"]
[WhiteElo "1597"]
[BlackElo "1559"]
[Annotator "NA RC"]
[PlyCount "99"]
[EventDate "2022.06.24"]
[EventType "team-tourn"]
[EventCountry "NET"]
[SourceTitle "playchess.com"]
[Source "ChessBase"]
[SourceQuality "1"]
[WhiteTeam "MAW"]
[BlackTeam "Kenya"]
[BlackTeamCountry "KEN"]
[TimeControl "180+2"]

1. d4 {[%emt 0:00:02]} g6 {[%emt 0:00:07]} 2. Nf3 {[%emt 0:00:02]} Bg7 {[%emt 0:00:01]} 3. c4 {[%emt 0:00:01]} c5 {[%emt 0:00:01]} 4. g3 {[%emt 0:00:02]} Nf6 {[%emt 0:00:05]} 5. Bg2 {[%emt 0:00:03]} cxd4 {[%emt 0:00:01]} 6. Nxd4 {[%emt 0:00:00]} O-O {[%emt 0:00:01]} 7. O-O {[%emt 0:00:02]} Nc6 {[%emt 0:00:02]} 8. Nc3 {[%emt 0:00:03]} Ng4 {[%emt 0:00:08]} 9. Nb3 {[%emt 0:00:05]} d6 {[%emt 0:00:03]} 10. h3 {[%emt 0:00:09]} Nge5 {[%emt 0:00:02]} 11. c5 {[%emt 0:00:07]} dxc5 {[%emt 0:00:14]} 12. Nxc5 {[%emt 0:00:03]} Bf5 {[%emt 0:00:15]} 13. e4 {[%emt 0:00:05]} Bc8 {[%emt 0:00:08]} 14. Bf4 {[%emt 0:00:11]} b6 {[%emt 0:00:03]} 15. Nb3 {[%emt 0:00:03]} Ba6 {[%emt 0:00:05]} 16. Re1 {[%emt 0:00:25]} Nd3 {[%emt 0:00:02]} 17. Re3 {[%emt 0:00:06]} Nxf4 {[%emt 0:00:04]} 18. gxf4 {[%emt 0:00:04]} Rc8 {[%emt 0:00:12]} 19. Re1 {[%emt 0:00:07]} Bh6 {[%emt 0:00:07]} 20. Qf3 {[%emt 0:00:04]} Nd4 {[%emt 0:00:07]} 21. Nxd4 {[%emt 0:00:05]} Qxd4 {[%emt 0:00:02]} 22. Rad1 {[%emt 0:00:04]} Qf6 {[%emt 0:00:02]} 23. f5 {[%emt 0:00:17]} Bb7 {[%emt 0:00:09]} 24. Rd7 {[%emt 0:00:12]} Ba8 {[%emt 0:00:19]} 25. Rxa7 {[%emt 0:00:06]} Bd2 {[%emt 0:00:15]} 26. Rd1 {[%emt 0:00:11]} Bxc3 {[%emt 0:00:01]} 27. bxc3 {[%emt 0:00:01]} Rxc3 {[%emt 0:00:03]} 28. Qg4 {[%emt 0:00:21]} h5 {[%emt 0:00:07]} 29. Qf4 {[%emt 0:00:12]} e5 {[%emt 0:00:25]} 30. Qd2 {[%emt 0:00:07]} Rcc8 {[%emt 0:00:16]} 31. Ra6 {[%emt 0:00:20]} gxf5 {[%emt 0:00:05]} 32. exf5 {[%emt 0:00:01]} Qg7 {[%emt 0:00:12]} 33. f3 {[%emt 0:00:14]} Bxf3 {[%emt 0:00:03]} 34. Rxb6 {[%emt 0:00:03]} Bxg2 {[%emt 0:00:08]} 35. Qxg2 {[%emt 0:00:02]} Qxg2+ {[%emt 0:00:03]} 36. Kxg2 {[%emt 0:00:00]} Rc2+ {[%emt 0:00:02]} 37. Kg3 {[%emt 0:00:01]} Rxa2 {[%emt 0:00:02]} 38. Rd5 {[%emt 0:00:05]} f6 {[%emt 0:00:04]} 39. Rb7 {[%emt 0:00:02]} Rf7 {[%emt 0:00:03]} 40. Rd8+ {[%emt 0:00:02]} Kg7 {[%emt 0:00:02]} 41. Rb3 {[%emt 0:00:02]} Raa7 {[%emt 0:00:06]} 42. Rdb8 {[%emt 0:00:02]} Rad7 {[%emt 0:00:02]} 43. Kh4 {[%emt 0:00:02]} Rd4+ {[%emt 0:00:02]} 44. Kxh5 {[%emt 0:00:04]} Rf8 {[%emt 0:00:04]} 45. R8b7+ {[%emt 0:00:02]} Kg8 {[%emt 0:00:02]} 46. Rb8 {[%emt 0:00:01]} Rdd8 {[%emt 0:00:05]} 47. Rxd8 {[%emt 0:00:02]} Rxd8 {[%emt 0:00:01]} 48. Kg6 {[%emt 0:00:01]} Rd6 {[%emt 0:00:02]} 49. Rb8+ {[%emt 0:00:01]} Rd8 {[%emt 0:00:03]} 50. Rxd8# {[%emt 0:00:02]} 1-0

[Event "Queens Festival Final Team 2022"]
[Site "Tornelo"]
[Date "2022.06.26"]
[Round "4.2"]
[White "Muthoni, Vivian"]
[Black "Banda Tapiwa"]
[Result "0-1"]
[ECO "C55"]
[WhiteElo "1128"]
[BlackElo "1213"]
[Annotator "NA"]
[PlyCount "56"]
[EventDate "2022.06.24"]
[EventType "team-tourn"]
[EventCountry "NET"]
[SourceTitle "playchess.com"]
[Source "ChessBase"]
[SourceQuality "1"]
[WhiteTeam "Kenya"]
[BlackTeam "MAW"]
[WhiteTeamCountry "KEN"]
[TimeControl "180+2"]

1. e4 {[%emt 0:00:02]} e5 {[%emt 0:00:05]} 2. Nf3 {[%emt 0:00:03]} Nc6 {[%emt 0:00:03]} 3. Bc4 {[%emt 0:00:05]} Nf6 {[%emt 0:00:03]} 4. Nc3 {[%emt 0:00:03]} Be7 {[%emt 0:00:06]} 5. O-O {[%emt 0:00:10]} O-O {[%emt 0:00:03]} 6. d3 {[%emt 0:00:04]} d6 {[%emt 0:00:02]} 7. Ng5 {[%emt 0:00:06]} Nd7 {[%emt 0:00:04]} 8. Nf3 {[%emt 0:00:26]} Nb6 {[%emt 0:00:03]} 9. Bb3 {[%emt 0:00:05]} Na5 {[%emt 0:00:02]} 10. Be3 {[%emt 0:00:10]} Nxb3 {[%emt 0:00:02]} 11. axb3 {[%emt 0:00:03]} Nd7 {[%emt 0:00:04]} 12. d4 {[%emt 0:00:27]} b6 {[%emt 0:00:06]} 13. dxe5 {[%emt 0:00:09]} Nxe5 {[%emt 0:00:02]} 14. Nxe5 {[%emt 0:00:04]} dxe5 {[%emt 0:00:01]} 15. Qf3 {[%emt 0:00:08]} f6 {[%emt 0:00:08]} 16. Qg3 {[%emt 0:00:08]} Rf7 {[%emt 0:00:07]} 17. Nd5 {[%emt 0:00:12]} Bb7 {[%emt 0:00:05]} 18. Nxe7+ {[%emt 0:00:11]} Qxe7 {[%emt 0:00:02]} 19. Qg4 {[%emt 0:00:13]} Bc8 {[%emt 0:00:04]} 20. Qg3 {[%emt 0:00:09]} Bb7 {[%emt 0:00:03]} 21. Qg4 {[%emt 0:00:05]} Qd7 {[%emt 0:00:02]} 22. Qxd7 {[%emt 0:00:06]} Rxd7 {[%emt 0:00:03]} 23. f3 {[%emt 0:00:03]} a5 {[%emt 0:00:06]} 24. Rfd1 {[%emt 0:00:31]} Rad8 {[%emt 0:00:02]} 25. Rxd7 {[%emt 0:00:03]} Rxd7 {[%emt 0:00:02]} 26. Re1 {[%emt 0:00:04]} Rd6 {[%emt 0:00:03]} 27. Re2 {[%emt 0:00:03]} Rc6 {[%emt 0:00:03]} 28. c4 {[%emt 0:00:03]} Ba6 {[%emt 0:00:03]} 0-1